Cogmind - Beta 16 @@@ ROGUE MODE // 2025.11.01 @ 19:28:03 Player: ArsMori Result: Self-destructed Performance ------------- Evolutions (1) 500 Regions Visited (2) 400 Robots Destroyed (17) 85 Value Destroyed (381) 381 Prototype IDs (1) 20 Alien Tech Used (0) 0 Bonus (0) 0 TOTAL SCORE: 1386 Bonus ------- None Cogmind --------- Core Integrity 15/400 Matter 216/300 Energy 200/200 System Corruption 0% Temperature Cool (0) Movement Core (700) Ox13 Location -9/Materials Parts ------- > --- POWER (2) -------- (None) > --- PROPULSION (2) --- (None) > --- UTILITY (3) ------ High-capacity Storage Unit Small Battery > --- WEAPON (2) ------- (None) > --- INVENTORY (20) --- Small Matter Pod (50) Seismic Detector Small Laser Peak State ------------ > --- POWER ------------ Ion Engine Light Ion Engine > --- PROPULSION ------- Aluminum Leg Aluminum Leg > --- UTILITY ---------- Small Battery Visual Processing Unit Core Shielding > --- WEAPON ----------- EM Shotgun Advanced Beam Cannon > --- INVENTORY -------- Small Matter Pod Seismic Detector Particle Gun Light Assault Rifle [Rating: 13] Favorites ----------- Power Light Ion Engine Engine Light Ion Engine Propulsion Light Treads Treads Light Treads Leg Aluminum Leg Flight Unit Flight Unit Utility Small Storage Unit Device Improved Terrain Scanner Storage Small Storage Unit Processor Visual Processing Unit Protection Core Shielding Weapon Light Assault Rifle Energy Gun Particle Gun Energy Cannon Advanced Beam Cannon Ballistic Gun Light Assault Rifle Special Weapon Mining Laser Build | -11 -10 -9 ------- Run | Yrd Mat Mat Slots Evolved 2 | . . 2 Power 1 | . . 1 Propulsion . | . . . Utility 1 | . . 1 Weapon . | . . . Parts Attached 26 | 9 11 6 Power 3 | 1 1 1 Engine 3 | 1 1 1 Core . | . . . Reactor . | . . . Propulsion 7 | 2 4 1 Treads 2 | 2 . . Leg 3 | . 2 1 Wheel . | . . . Hover . | . . . Flight 2 | . 2 . Utility 7 | 2 3 2 Device 2 | 1 1 . Storage 3 | 1 . 2 Processor 1 | . 1 . Hackware . | . . . Protection 1 | . 1 . Artifact . | . . . Weapon 9 | 4 3 2 Energy Gun 4 | 1 2 1 Energy Cannon 1 | . . 1 Ballistic Gun 3 | 2 1 . Ballistic Cannon . | . . . Launcher . | . . . Special Weapon 1 | 1 . . Impact Weapon . | . . . Slashing Weapon . | . . . Piercing Weapon . | . . . Special Melee Weapon . | . . . Unidentified Prototypes . | . . . Parts Lost 10 | . . 10 Power 2 | . . 2 Propulsion 3 | . . 3 Utility 1 | . . 1 Weapon 4 | . . 4 Highest Loss Streak 10 | . . 10 To Critical Strikes . | . . . Average Backups 4 | 2 5 4 Power . | . . . Propulsion . | . . . Utility 1 | . 2 2 Weapon 1 | 1 2 1 Tool/Special . | . . . Unused Backups 2 | . . 2 Power . | . . . Propulsion . | . . . Utility 2 | . . 2 Weapon . | . . . Tool/Special . | . . . Average Slot Usage (%) 87 | . 98 68 Engine 12 | . 14 9 Treads 7 | . 11 . Leg 14 | . 15 12 Device 6 | . 10 . Storage 10 | . 9 12 Processor 5 | . 3 10 Protection 6 | . 4 9 Energy Gun 12 | . 14 8 Energy Cannon 1 | . . 4 Ballistic Gun 8 | . 11 1 Peak Build Rating 13 | 9 10 13 Average Rating 8 | 5 9 8 On Entrance 6 | . 9 9 Avg Prop Armor Cover (%) . | . . . Naked Turns . | . . . Heaviest Build 56 | 11 15 56 Greatest Support 40 | 40 40 20 Greatest Overweight (x) 14 | . 4 14 Average Overweight (x) . | . . 1 Largest Inventory Capacity 20 | 8 8 20 Average Capacity 8 | 7 7 13 Most Carried 8 | 5 8 5 Average Carried 4 | 2 5 4 Final Capacity 20 | 8 5 20 Final Carried 4 | 4 4 3 Class Distribution -------------------- 60% | Mutant 39% | Scavenger-Mutant Dominant Class ---------------- Scavenger-Mutant | -10/Materials Scavenger-Mutant | -9/Materials Resources | -11 -10 -9 ----------- Run | Yrd Mat Mat Matter Collected 578 | 382 184 12 Remotely . | . . . Salvage Created 510 | 138 261 111 Parts 32 | 9 17 6 Haulers Intercepted . | . . . Recyclers Shooed . | . . . Parts Field Recycled . | . . . Retrieved Matter . | . . . Parts Self-Destructed . | . . . Prevented . | . . . Parts Restored . | . . . Kills | -11 -10 -9 ------- Run | Yrd Mat Mat Combat Hostiles Destroyed 9 | . 6 3 Guns 6 | . 6 . Cannons 3 | . . 3 Classes Destroyed 7 | 3 3 1 Worker 1 | 1 . . Tunneler 3 | 3 . . Recycler 1 | 1 . . Watcher 3 | . 3 . Swarmer 2 | . 2 . Grunt 6 | . 4 2 Sentry 1 | . . 1 Best Kill Streak 3 | 3 2 3 Combat Bots Only 3 | . 2 3 Max Kills in Single Turn 1 | 1 1 1 Gunslinging . | . . . Exploded . | . . . Melee . | . . . Uniques/NPCs Destroyed . | . . . Combat | -11 -10 -9 -------- Run | Yrd Mat Mat Hostile Shots Fired 137 | . 48 89 Missed 39 | . 22 17 Hits 98 | . 26 72 Projectile 98 | . 26 72 Critical Strikes 7 | . 1 6 Actively Blocked 3 | . . 3 Damage Taken 1473 | . 315 1158 Core 398 | . 13 385 Absorbed by Shields . | . . . Redirected to Shielding 50 | . . 50 Core Remaining (%) 97 | 100 94 . Volleys Fired 98 | 47 35 16 Largest 2 | 2 2 2 Hottest 113 | 100 105 113 Shots Fired 143 | 52 70 21 Gun 132 | 50 70 12 Cannon 9 | . . 9 Launcher . | . . . Special 2 | 2 . . Kinetic 99 | 45 52 2 Thermal 41 | 7 18 16 Explosive . | . . . Electromagnetic 3 | . . 3 Robot Hit Streak 11 | 9 11 5 Robot Miss Streak 3 | 3 3 2 Penetration Max . | . . . Secondary Targets . | . . . Shots Hit Robots 85 | 27 44 14 Core Hits 38 | 12 18 8 Critical Kills . | . . . Critical Parts Destroyed . | . . . Critical Strikes . | . . . Melee Attacks . | . . . Impact . | . . . Slashing . | . . . Piercing . | . . . Sneak Attacks . | . . . Combat Hostiles . | . . . Follow-up Attacks . | . . . Damage Inflicted 1231 | 248 395 588 Guns 775 | 248 395 132 Cannons 123 | . . 123 Explosions 331 | . . 331 Melee . | . . . Ramming 2 | . . 2 Kinetic 509 | 214 288 7 Thermal 670 | 34 107 529 Explosive . | . . . Electromagnetic 50 | . . 50 Impact . | . . . Slashing . | . . . Piercing . | . . . Highest Corruption 1 | . 1 . Average Corruption 1 | . 1 . Corruption Purged . | . . . Corruption Blocked . | . . . Overload Shots . | . . . Overflow Damage 13 | . . 13 Projectiles . | . . . Explosions 13 | . . 13 Melee . | . . . Knockbacks . | . . . Impact . | . . . Kinetic . | . . . Secondary . | . . . Self-Inflicted Damage 113 | . . 113 Shots 2 | . . 2 Rammed 2 | . . 2 Targets Rammed 5 | . . 5 Kicked 3 | . . 3 Crushed . | . . . Highest Temperature 466 | 40 27 466 Average Temperature 132 | 20 7 279 Received Heat Transfer 603 | . 174 429 Effects 2 | . . 2 Interference 1 | . . 1 Damage (minor) 1 | . . 1 Siege Activations . | . . . Martial Activations . | . . . Shielding Activations . | . . . Robots Disrupted . | . . . Combat Hostiles . | . . . Robots Corrupted . | . . . Combat Hostiles . | . . . Parts Fried . | . . . Impact Corruptions . | . . . Robots Melted . | . . . Combat Hostiles . | . . . Parts Melted 1 | . . 1 Heat Transferred 1030 | 75 248 707 Parts Sabotaged . | . . . Parts Stolen . | . . . Parts Stripped . | . . . Power Chain Reactions 1 | . . 1 Alert | -11 -10 -9 ------- Run | Yrd Mat Mat Maximum Alert Level . | . . . Low Security (%) 100 | 100 100 100 Level 1 . | . . . Level 2 . | . . . Level 3 . | . . . Level 4 . | . . . Level 5 . | . . . High Security . | . . . Max Security . | . . . Peak Influence 70 | 5 70 60 Initial . | . . . Average 15 | . 29 11 Influence Increases 323 | 25 162 136 Destroy 0b10 Robot/C 180 | . 120 60 Destroy 0b10 Robot/NC 40 | 25 15 . Destroy Leader 46 | . 26 20 Successful Hack 3 | . 1 2 Disable Machine 15 | . . 15 Destroy Structure 24 | . . 24 Lose Combat Pursuer 15 | . . 15 Influence Decreases 323 | 25 162 136 Time Decay 234 | 25 162 47 Lost Part 89 | . . 89 Squads Dispatched 1 | . 1 . Investigation . | . . . Extermination . | . . . Reinforcement 1 | . 1 . Assault . | . . . Garrison . | . . . Intercept . | . . . Searches Triggered . | . . . Construction Impeded . | . . . Haulers Reinforced . | . . . Active Scanning Responses . | . . . Cargo Convoy Interrupts . | . . . Stealth | -11 -10 -9 --------- Run | Yrd Mat Mat Distress Signals 2 | . 1 1 Communications Jammed . | . . . Distress Signals . | . . . Times Spotted 23 | . 15 8 Peak Tracking Total 7 | . 5 7 Tactical Retreats 1 | . . 1 Traps | -11 -10 -9 ------- Run | Yrd Mat Mat Traps Triggered 5 | . 1 4 Indirectly . | . . . Trap Hack Attempts . | . . . Triggered . | . . . Disarmed . | . . . Reprogrammed . | . . . Reused . | . . . Traps Extracted . | . . . Installed . | . . . Triggered . | . . . Machines | -11 -10 -9 ---------- Run | Yrd Mat Mat Machines Disabled 1 | . . 1 Max in Single Turn 1 | . . 1 Machines Repaired . | . . . Machines Dismantled . | . . . Machines Sabotaged . | . . . Overloaded Fab Kills . | . . . Hacking | -11 -10 -9 --------- Run | Yrd Mat Mat Machines Accessed 5 | . 4 1 Terminals 2 | . 2 . Fabricators . | . . . Repair Stations 1 | . 1 . Recycling Units 1 | . 1 . Scanalyzers 1 | . . 1 Garrison Access . | . . . Total Hacks 18 | . 13 5 Successful 13 | . 9 4 Failed 5 | . 4 1 Catastrophic . | . . . Database Lockouts . | . . . Manual . | . . . Terminals 7 | . 7 . Fabricators . | . . . Repair Stations 1 | . 1 . Recycling Units 5 | . 5 . Scanalyzers 5 | . . 5 Garrison Access . | . . . Terminal Hacks 6 | . 6 . Record 4 | . 4 . Alert Level 1 | . 1 . Dispatch Records 1 | . 1 . Fabricator Hacks . | . . . Repair Station Hacks . | . . . Recycling Unit Hacks 3 | . 3 . Recycle Component 1 | . 1 . Process 1 | . 1 . Report Inventory 1 | . 1 . Scanalyzer 4 | . . 4 Insert Component 1 | . . 1 Analyze 1 | . . 1 Retrieve Study 2 | . . 2 Garrison Access Hacks . | . . . Unauthorized Hacks . | . . . Terminals . | . . . Fabricators . | . . . Repair Stations . | . . . Recycling Units . | . . . Scanalyzers . | . . . Garrison Access . | . . . Data Cores Recovered . | . . . Used . | . . . Hacking Detections 3 | . 3 . Full Trace Events . | . . . Feedback Events . | . . . Feedback Blocked . | . . . Robot Schematics Acquired . | . . . Robots Built . | . . . Authchips . | . . . Time . | . . . Total Robot Build Rating . | . . . Part Schematics Acquired 1 | . . 1 Parts Built . | . . . Authchips . | . . . Time . | . . . Total Part Build Rating . | . . . Part Studies Acquired 2 | . . 2 Parts Repaired . | . . . Time . | . . . Parts Recycled 1 | . 1 . Recycled Matter 82 | . 82 . Retrieved Matter . | . . . Retrieved Components . | . . . Parts Scanalyzed 1 | . . 1 Part Schematics Acquired 1 | . . 1 Parts Damaged . | . . . Bothacking | -11 -10 -9 ------------ Run | Yrd Mat Mat Used RIF Installer . | . . . Robots Hacked . | . . . Non-combat . | . . . Combat . | . . . Robot Hacks Applied . | . . . Relay Couplers Released . | . . . Fabnet Peak Effective % . | . . . Robots Rewired . | . . . Allies Hacked . | . . . Hacks Repelled . | . . . Allies | -11 -10 -9 -------- Run | Yrd Mat Mat Total Allies . | . . . Largest Group . | . . . Highest-Rated Group . | . . . Highest-Rated Ally . | . . . Total Orders . | . . . Ally Attacks . | . . . Total Damage . | . . . Kills . | . . . Allies Corrupted . | . . . Allies Melted . | . . . Intel | -11 -10 -9 ------- Run | Yrd Mat Mat Active Infowar (turns) 623 | 68 314 241 Optics 361 | . 120 241 Terrain 262 | 68 194 . Robot Analysis Total . | . . . Derelict Logs Recovered . | . . . Drone Launches . | . . . Drone Recoveries . | . . . Exploration | -11 -10 -9 ------------- Run | Yrd Mat Mat Turns Passed 1090 | 375 460 255 Spaces Moved 507 | 171 247 89 Core 22 | 14 1 7 Treads 216 | 157 59 . Legs 269 | . 187 82 Wheels . | . . . Hover . | . . . Flight . | . . . Fastest Speed 50 | 50 120 105 Average Speed 146 | 150 132 176 Slowest Speed 750 | 160 250 750 Overloaded Moves . | . . . Propulsion Burnouts . | . . . Robots Hopped . | . . . Potential Cave-ins . | . . . Cave-ins Triggered . | . . . Exploration Rate (%) 28 | 12 61 11 Regions Visited 2 Branch Regions . Pre-discovered Areas . | . . . Known Exits Taken . | . . . Unknown Exits Taken 2 | 1 1 . Scrap Searched . | . . . Spaces Dug 1 | 1 . . Terrain Destroyed 23 | 1 . 22 Melee . | . . . Projectile 1 | 1 . . AOE 22 | . . 22 Terrain Rammed . | . . . Walls Destroyed . | . . . Machines Disabled . | . . . Actions | -11 -10 -9 --------- Run | Yrd Mat Mat Total 705 | 239 322 144 Wait 18 | 2 7 9 Move 505 | 170 246 89 Hop . | . . . Pick Up 30 | 11 11 8 Fast Attach 6 | . 2 4 Attach 24 | 7 7 10 Detach 1 | . . 1 Swap 8 | 2 5 1 Drop 10 | . 9 1 Fire 98 | 47 35 16 Melee . | . . . Ram 2 | . . 2 Kick 3 | . . 3 Crush . | . . . Escape Stasis . | . . . Rewire . | . . . Trap . | . . . Miscellaneous . | . . . Route ------- -11/Scrapyard -10/Materials (discovered 2 exits: *Mat / [*Min]) -9/Materials History --------- Turn | Location | Event 16 | -11/Scrapyard | Discovered new exit (range 13) 376 | -11/Scrapyard | Entered Materials 377 | -10/Materials | Build established: Mutant 721 | -10/Materials | Discovered new exit (range 7) 806 | -10/Materials | Discovered new exit (range 15) 836 | -10/Materials | Entered another Materials area 836 | -9/Materials | Evolved 2 slots: Power x1, Utility x1 857 | -9/Materials | Build established: Scavenger-Mutant 1018 | -9/Materials | Core integrity fell below 50% 1082 | -9/Materials | Core integrity fell below 20% 1091 | -9/Materials | Self-destructed Last Messages --------------- K-01 Serf collects debris. K-01 Serf suffers critical hit (Burn). K-01 Serf destroyed. Aluminum Leg+ destroyed. R-06 Scavenger collects Sml. Storage Unit. U-05 Engineer lays Concrete. Slammed into Y-45 Defender. Triggered Blade Trap. Massive razor-sharp blades shoot up from within the floor. Visual Processing Unit severed. K-01 Serf collects debris. U-05 Engineer lays Concrete. R-06 Scavenger collects Com. Wheel. K-01 Serf collects debris. R-06 Scavenger collects Terrain Scanner. Slammed into Y-45 Defender. K-01 Serf collects debris. R-06 Scavenger collects Wheel. K-01 Serf collects debris. Map ----- +----------------------------------------------------+ | ?????????????????????????????????????????????????? | | ?????????????????????????????????????????????????? | | ?????????????????????????????????????????????????? | | ?????????????????????????????????????????????????? | | ?????????????????????????????????????????????????? | | ?????????????????????????????????????????????????? | | ???????????????????????????#####?????????????????? | | ?????????????????????????? ?????????????????? | | ??????????????????????????" ?????????????????? | | ???????????????+## ???????" ?????????????????? | | ??????????????? ??????" ??????????????????? | | ??????????????? ???? =%[ ?????????????????? | | ???????????????? ??#"""! ""?????????????????? | | ?????????????????# ??#""" Y"?????????????????? | | ??????????????????# ##""" "??????????????????? | | ??????????????????# #" ??????????????????? | | ??????????????????# ######+####????????????????? | | ?????????????"????# # #????????????????? | | ????????????"" ## # !!!#????????????????? | | ??????????????? + # !!!#????????????????? | | ??????????????????# # ! #????????????????? | | ??????????????????# # #????????????????? | | ??????????????????# # % #????????????????? | | ??????????????????# ##/#+#######???????????????? | | ??????????????????# Y% # #???????????????? | | ????????????" """ + % k!@ # #???????????????? | | ????????????? """ # ! + " #???????????????? | | ????????????? "???# ^# ""#???????????????? | | ??????????????????# # ""#???????????????? | | ??????????????????# # """#???????????????? | | ??????????????????# + "" #???????????????? | | ??????????????????# # """#???????????????? | | ??????????????????# ##+### """#???????????????? | | ??????????????????# # ## """#???????????????? | | ??????????????????# # ## " #???????????????? | | ?????????########## # ## #???????????????? | | ?????????# # # ########???????????????? | | ?????????# """"" # # #??????????????????????? | | ?????????# """"" # # #??????????????????????? | | ?????????# """"" # # #??????????????????????? | | ?????????# + ########???????????????????? | | ?????????# """"" # # #???????????????????? | | ?????????# """"" # # #???????????????????? | | ?????????# """"" # # #???????????????????? | | ?????????# # # [ "" #???????????????????? | | ?????????########## # S"" #???????????????????? | | ??????????????????# + "" #???????????????????? | | ??????????????????# ########???????????????????? | | ??????????????????# # #???????????????????? | | ??????????????????# # #???????????????????? | +----------------------------------------------------+ Best States ------------- Heat Dissipation 39 Energy Generation 15 Energy Capacity 375 Matter Stores 300 Matter Capacity 300 Sight Range 18 Terrain Scan Range 16 Terrain Scan Density 10 Core Shielding 20 Evasion (%) 55 Recoil Reduction 2 Item Schematics ----------------- Adv. Beam Cannon | -9/Materials | Scanalyzed Robot Schematics ------------------ None Fabricated ------------ Nothing Repaired ---------- Nothing Studied --------- EM Shotgun | -9/Materials | Hacked Aluminum Leg | -9/Materials | Hacked Alien Tech Used ----------------- None Achievements -------------- Item+ Safety First That Tickles There's More Where That Came From Challenges ------------ None Game ------ Seed SystemFactoryClaymores Manual? 0 Play Time 00:21:44 Cumulative 1.0 hours Start 2025.11.01 @ 18:36:54 End 2025.11.01 @ 19:28:03 Sessions 3 Manual Loads 0 Difficulty Rogue Special Mode None Game No. 3 Rogue 3 Adventurer 0 Explorer 0 Win Type - Total 0 Types 0/0/0/0/0/0/0/0/0/0 Lore% 0 Gallery% 3 Achievement% 2 Wizard Run 0 Options --------- Layout 1 ASCII 0 Keyboard 0 Movement Mouse Keybinds 0 Fullscreen 2 Font 24/Smallcaps Map View 50x35 Zoom Use 0% Tactical HUD 0 Map Filters NONE Filters NONE Steam 1 RUN: 5c6933f6-fc1e-4c05-b20b-ab79e9b54324